[Event "WJCC U20 Open 2019"]
[Site "New Delhi"]
[Date "2019.10.22"]
[Round "8.39"]
[White "Risting, Eivind Olav"]
[Black "Vatsal Singhania"]
[Result "1-0"]
[ECO "E46"]
[WhiteElo "2289"]
[BlackElo "2157"]
[Annotator "RC"]
[PlyCount "90"]
[EventDate "2019.10.15"]
[EventType "swiss"]
[EventCountry "IND"]
[SourceTitle "playchess.com"]
[Source "ChessBase"]
[SourceQuality "1"]
[TimeControl "40/5400+30:1800+30"]

1. d4 {[%emt 0:00:00]} Nf6 {[%emt 0:00:00]} 2. c4 {[%emt 0:00:00]} e6 {[%emt 0:00:00]} 3. Nc3 {[%emt 0:00:00]} Bb4 {[%emt 0:00:00]} 4. e3 {[%emt 0:00:06]} O-O {[%emt 0:00:11]} 5. Bd2 {[%emt 0:00:31]} d5 {[%emt 0:00:40]} 6. cxd5 {[%emt 0:00:46]} exd5 {[%emt 0:00:12]} 7. Bd3 {[%emt 0:00:41]} Re8 {[%emt 0:01:59]} 8. Nf3 {[%emt 0:02:03]} c6 {[%emt 0:03:45]} 9. Qc2 {[%emt 0:14:02]} Nbd7 {[%emt 0:02:15]} 10. a3 {[%emt 0:02:25]} Bd6 {[%emt 0:00:06]} 11. h3 {[%emt 0:02:11]} Nf8 {[%emt 0:00:51]} 12. O-O {[%emt 0:05:04]} Bd7 {[%emt 0:04:58]} 13. Rfe1 {[%emt 0:04:04]} Qc8 {[%emt 0:01:36]} 14. e4 {[%emt 0:04:29]} dxe4 {[%emt 0:00:09]} 15. Nxe4 {[%emt 0:00:16]} Nxe4 {[%emt 0:00:06]} 16. Bxe4 {[%emt 0:00:17]} Ng6 {[%emt 0:07:52]} 17. Ng5 {[%emt 0:09:57]} Qc7 {[%emt 0:04:38]} 18. Qb3 {[%emt 0:07:57]} Rf8 {[%emt 0:01:05]} 19. Qf3 {[%emt 0:05:20]} h6 {[%emt 0:06:45]} 20. Bxg6 {[%emt 0:02:13]} hxg5 {[%emt 0:00:07]} 21. Bd3 {[%emt 0:07:22]} g4 {[%emt 0:05:22]} 22. hxg4 {[%emt 0:00:17]} Rfe8 {[%emt 0:03:43]} 23. g5 {[%emt 0:06:27]} Rxe1+ {[%emt 0:04:14]} 24. Rxe1 {[%emt 0:00:52]} Re8 {[%emt 0:00:06]} 25. Rxe8+ {[%emt 0:04:27]} Bxe8 {[%emt 0:00:04]} 26. Qe4 {[%emt 0:00:23]} Kf8 {[%emt 0:00:35]} 27. Qh7 {[%emt 0:01:13]} g6 {[%emt 0:00:25]} 28. Bc3 {[%emt 0:02:11]} a6 {[%emt 0:12:23]} 29. d5 {[%emt 0:02:20]} Be5 {[%emt 0:01:39]} 30. dxc6 {[%emt 0:04:33]} Bxc3 {[%emt 0:00:13]} 31. bxc3 {[%emt 0:00:12]} Qxc6 {[%emt 0:02:09]} 32. Qh8+ {[%emt 0:00:12]} Ke7 {[%emt 0:00:03]} 33. Qe5+ {[%emt 0:01:15]} Qe6 {[%emt 0:02:36]} 34. Qd4 {[%emt 0:04:57]} Qd6 {[%emt 0:02:05]} 35. Qxd6+ {[%emt 0:03:04]} Kxd6 {[%emt 0:00:04]} 36. f4 {[%emt 0:00:52]} Kc5 {[%emt 0:01:32]} 37. Kf2 {[%emt 0:00:42]} Bb5 {[%emt 0:00:58]} 38. Bb1 {[%emt 0:01:02]} Bc4 {[%emt 0:06:03]} 39. g4 {[%emt 0:03:56]} b5 {[%emt 0:04:15]} 40. Ke3 {[%emt 0:00:39]} Bd5 {[%emt 0:09:19]} 41. f5 {[%emt 0:01:49]} Kc4 {[%emt 0:00:42]} 42. fxg6 {[%emt 0:02:03]} fxg6 {[%emt 0:00:03]} 43. Bxg6 {[%emt 0:01:08]} Bg8 {[%emt 0:00:04]} 44. Be8 {[%emt 0:00:41]} Be6 {[%emt 0:02:32]} 45. g6 {[%emt 0:00:25]} Kd5 {Ke4+} 1-0

[Event "WJCC U20 Open 2019"]
[Site "New Delhi"]
[Date "2019.10.22"]
[Round "8.43"]
[White "Hamad Essam"]
[Black "Maltezeanu, Stefan"]
[Result "1/2-1/2"]
[ECO "B40"]
[WhiteElo "1849"]
[BlackElo "2102"]
[Annotator "ChessBase"]
[PlyCount "86"]
[EventDate "2019.10.15"]
[EventType "swiss"]
[EventCountry "IND"]
[SourceTitle "playchess.com"]
[Source "ChessBase"]
[SourceQuality "1"]
[TimeControl "40/5400+30:1800+30"]

1. e4 c5 {[%emt 0:00:00]} 2. Nf3 {[%emt 0:00:00]} e6 {[%emt 0:00:00]} 3. d4 {[%emt 0:01:13]} cxd4 {[%emt 0:00:00]} 4. Nxd4 {[%emt 0:00:02]} Nf6 {[%emt 0:00:07]} 5. Nc3 {[%emt 0:00:04]} Bb4 {[%emt 0:00:02]} 6. Bd3 {[%emt 0:03:47]} Nc6 {[%emt 0:01:19]} 7. Be3 {[%emt 0:05:52]} d5 {[%emt 0:03:32]} 8. Nxc6 {[%emt 0:06:06]} bxc6 {[%emt 0:00:10]} 9. exd5 {[%emt 0:00:11]} cxd5 {[%emt 0:01:02]} 10. O-O {[%emt 0:00:21]} O-O {[%emt 0:00:25]} 11. Bd4 {[%emt 0:04:36]} Re8 {[%emt 0:06:06]} 12. f4 {[%emt 0:00:52]} a5 {[%emt 0:04:40]} 13. Qe2 {[%emt 0:01:40]} Qe7 {[%emt 0:03:59]} 14. Kh1 {[%emt 0:11:21]} Bb7 {[%emt 0:04:36]} 15. Rf3 {[%emt 0:03:56]} Bc5 {[%emt 0:01:57]} 16. Be5 {[%emt 0:01:17]} d4 {[%emt 0:12:15]} 17. Ne4 {[%emt 0:18:44]} Nxe4 {[%emt 0:03:20]} 18. Bxe4 {[%emt 0:00:03]} f6 {[%emt 0:04:42]} 19. Rh3 {[%emt 0:04:48]} h6 {[%emt 0:01:04]} 20. Bxf6 {[%emt 0:06:08]} gxf6 {[%emt 0:14:07]} 21. Qg4+ {[%emt 0:01:55]} Qg7 {[%emt 0:06:31]} 22. Qxg7+ {[%emt 0:01:43]} Kxg7 {[%emt 0:00:04]} 23. Bxb7 {[%emt 0:00:07]} Rab8 {[%emt 0:01:20]} 24. Bc6 {[%emt 0:00:11]} Re7 {[%emt 0:01:42]} 25. b3 {[%emt 0:02:00]} Bd6 {[%emt 0:04:41]} 26. Rf1 {[%emt 0:00:29]} Rc8 {[%emt 0:01:26]} 27. Be4 {[%emt 0:00:08]} Rc3 {[%emt 0:00:14]} 28. Rxc3 {[%emt 0:00:54]} dxc3 {[%emt 0:00:07]} 29. Rf3 {[%emt 0:04:01]} f5 {[%emt 0:01:11]} 30. Bc6 {[%emt 0:03:05]} Rc7 {[%emt 0:03:28]} 31. Bb5 {[%emt 0:02:19]} Bb4 {[%emt 0:05:47]} 32. Kg1 {[%emt 0:02:25]} Kf6 {[%emt 0:00:25]} 33. Kf1 {[%emt 0:00:27]} Rc5 {[%emt 0:00:19]} 34. Bc4 {[%emt 0:00:15]} e5 {[%emt 0:01:29]} 35. fxe5+ {[%emt 0:01:03]} Rxe5 {[%emt 0:00:37]} 36. Bd3 {[%emt 0:02:27]} Kg5 {[%emt 0:00:46]} 37. Rg3+ {[%emt 0:00:18]} Kf6 {[%emt 0:01:28]} 38. Rf3 {[%emt 0:00:30]} Kg5 {[%emt 0:00:05]} 39. Rg3+ {[%emt 0:00:06]} Kf6 {[%emt 0:00:03]} 40. Rg8 {[%emt 0:02:02]} Rd5 {[%emt 0:01:43]} 41. h4 {[%emt 0:32:40]} Bc5 {[%emt 0:31:38]} 42. Rc8 {[%emt 0:02:55]} Ke7 {[%emt 0:03:18]} 43. Ke2 {[%emt 0:03:47]} Kd7 {[%emt 0:00:40]} 1/2-1/2

[Event "WJCC U20 Open 2019"]
[Site "New Delhi"]
[Date "2019.10.22"]
[Round "8.44"]
[White "Swarnavo Choudhury"]
[Black "Mohd Saprin, Amir Ghaazi"]
[Result "0-1"]
[ECO "C78"]
[WhiteElo "1797"]
[BlackElo "1942"]
[Annotator "NA"]
[PlyCount "136"]
[EventDate "2019.10.15"]
[EventType "swiss"]
[EventCountry "IND"]
[SourceTitle "playchess.com"]
[Source "ChessBase"]
[SourceQuality "1"]
[TimeControl "40/5400+30:1800+30"]

1. e4 e5 {[%emt 0:03:30]} 2. Nf3 {[%emt 0:00:00]} Nc6 {[%emt 0:00:05]} 3. Bb5 {[%emt 0:00:00]} a6 {[%emt 0:00:08]} 4. Ba4 {[%emt 0:00:00]} Nf6 {[%emt 0:00:05]} 5. O-O {[%emt 0:00:00]} b5 {[%emt 0:00:04]} 6. Bb3 {[%emt 0:00:11]} Bc5 {[%emt 0:00:08]} 7. a4 {[%emt 0:02:18]} Rb8 {[%emt 0:02:21]} 8. axb5 {[%emt 0:01:16]} axb5 {[%emt 0:00:13]} 9. Nxe5 {[%emt 0:02:29]} Nxe5 {[%emt 0:01:45]} 10. d4 {[%emt 0:00:12]} Bxd4 {[%emt 0:00:12]} 11. Qxd4 {[%emt 0:00:14]} d6 {[%emt 0:01:31]} 12. f4 {[%emt 0:01:19]} c5 {[%emt 0:02:17]} 13. Qc3 {[%emt 0:03:57]} b4 {[%emt 0:43:18]} 14. Qe1 {[%emt 0:06:21]} Ng6 {[%emt 0:01:52]} 15. e5 {[%emt 0:17:04]} dxe5 {[%emt 0:09:26]} 16. fxe5 {[%emt 0:05:25]} Nd5 {[%emt 0:02:45]} 17. Qe4 {[%emt 0:02:01]} Be6 {[%emt 0:01:53]} 18. Rd1 {[%emt 0:00:41]} c4 {[%emt 0:11:09]} 19. Bxc4 {[%emt 0:02:01]} Qb6+ {[%emt 0:00:14]} 20. Kh1 {[%emt 0:00:09]} Nc7 {[%emt 0:01:46]} 21. Be3 {[%emt 0:00:32]} Qb7 {[%emt 0:00:31]} 22. Qxb7 {[%emt 0:07:07]} Rxb7 {[%emt 0:00:04]} 23. Bxe6 {[%emt 0:00:20]} Nxe6 {[%emt 0:00:03]} 24. Ra8+ {[%emt 0:03:06]} Ke7 {[%emt 0:00:06]} 25. Ra5 {[%emt 0:00:11]} Rc8 {[%emt 0:01:11]} 26. c3 {[%emt 0:01:19]} bxc3 {[%emt 0:00:38]} 27. bxc3 {[%emt 0:00:23]} Rc4 {[%emt 0:00:24]} 28. Rad5 {[%emt 0:05:07]} Re4 {[%emt 0:02:45]} 29. Bd4 {[%emt 0:01:52]} Re2 {[%emt 0:01:21]} 30. Ra5 {[%emt 0:00:45]} Nh4 {[%emt 0:02:24]} 31. Ra7 {[%emt 0:08:34]} Rxa7 {[%emt 0:01:28]} 32. Bxa7 {[%emt 0:00:08]} Rxg2 {[%emt 0:01:48]} 33. Rf1 {[%emt 0:04:02]} Re2 {[%emt 0:01:50]} 34. Bd4 {[%emt 0:02:09]} Ng5 {[%emt 0:02:30]} 35. Bf2 {[%emt 0:03:06]} Nhf3 {[%emt 0:00:35]} 36. Kg2 {[%emt 0:01:42]} Ke6 {[%emt 0:00:48]} 37. h4 {[%emt 0:00:19]} Nxh4+ {[%emt 0:00:13]} 38. Kh1 {[%emt 0:01:45]} Nf5 {[%emt 0:00:35]} 39. Na3 {[%emt 0:00:11]} Ne4 {[%emt 0:00:24]} 40. Kg1 {[%emt 0:00:12]} Nxc3 {[%emt 0:01:08]} 41. Nc4 {[%emt 0:30:05]} Re4 {[%emt 0:30:42]} 42. Nd2 {[%emt 0:00:10]} Rg4+ {[%emt 0:04:17]} 43. Kh2 {[%emt 0:00:11]} Ne4 {[%emt 0:00:00]} 44. Nf3 {[%emt 0:00:00]} Nxf2 {[%emt 0:00:00]} 45. Rxf2 {[%emt 0:00:00]} Nd4 {[%emt 0:00:00]} 46. Kh3 {[%emt 0:00:00]} h5 {[%emt 0:00:00]} 47. Nd2 {[%emt 0:00:00]} Nc6 {[%emt 0:00:00]} 48. Nf3 {[%emt 0:00:00]} Nxe5 {[%emt 0:00:00]} 49. Nxe5 {[%emt 0:00:00]} Kxe5 {[%emt 0:00:00]} 50. Rxf7 {[%emt 0:00:00]} g6 {[%emt 0:00:00]} 51. Rg7 {[%emt 0:00:00]} Kf6 {[%emt 0:00:00]} 52. Ra7 {[%emt 0:00:00]} Kg5 {[%emt 0:00:00]} 53. Ra5+ {[%emt 0:00:00]} Kh6 {[%emt 0:00:00]} 54. Ra6 {[%emt 0:00:00]} Rb4 {[%emt 0:00:00]} 55. Kg3 {[%emt 0:00:00]} h4+ {[%emt 0:00:00]} 56. Kh3 {[%emt 0:00:00]} Kh5 {[%emt 0:00:00]} 57. Ra3 {[%emt 0:00:00]} g5 {[%emt 0:00:00]} 58. Ra2 {[%emt 0:00:00]} Rb3+ {[%emt 0:00:00]} 59. Kg2 {[%emt 0:00:00]} h3+ {[%emt 0:00:00]} 60. Kh2 {[%emt 0:00:00]} Kh4 {[%emt 0:00:00]} 61. Ra1 {[%emt 0:00:00]} g4 {[%emt 0:00:00]} 62. Kh1 {[%emt 0:00:00]} Rb2 {[%emt 0:00:00]} 63. Rc1 {[%emt 0:00:00]} Rf2 {[%emt 0:00:00]} 64. Ra1 {[%emt 0:00:00]} Rf4 {[%emt 0:00:00]} 65. Kg1 {[%emt 0:00:00]} Rb4 {[%emt 0:00:00]} 66. Rc1 {[%emt 0:00:00]} g3 {[%emt 0:00:00]} 67. Kh1 {[%emt 0:00:00]} h2 {[%emt 0:00:14]} 68. Rc8 {[%emt 0:00:00]} Rb1+ {[%emt 0:00:17]} 0-1

[Event "WJCC U20 Open 2019"]
[Site "New Delhi"]
[Date "2019.10.22"]
[Round "8.45"]
[White "Sivathanujan, S."]
[Black "Davis, Holden"]
[Result "1-0"]
[ECO "C06"]
[WhiteElo "1766"]
[BlackElo "1817"]
[Annotator "NA RC"]
[PlyCount "48"]
[EventDate "2019.10.15"]
[EventType "swiss"]
[EventCountry "IND"]
[SourceTitle "playchess.com"]
[Source "ChessBase"]
[SourceQuality "1"]
[TimeControl "40/5400+30:1800+30"]

1. e4 {[%emt 0:00:00]} e6 {[%emt 0:00:00]} 2. d4 {[%emt 0:00:00]} d5 {[%emt 0:00:00]} 3. Nd2 {[%emt 0:00:00]} Nf6 {[%emt 0:00:06]} 4. e5 {[%emt 0:00:00]} Nfd7 {[%emt 0:00:04]} 5. Bd3 {[%emt 0:00:07]} c5 {[%emt 0:00:06]} 6. c3 {[%emt 0:00:05]} Nc6 {[%emt 0:00:04]} 7. Ne2 {[%emt 0:01:06]} cxd4 {[%emt 0:00:06]} 8. cxd4 {[%emt 0:00:07]} f6 {[%emt 0:00:03]} 9. Nf4 {[%emt 0:08:09]} Nxd4 {[%emt 0:01:14]} 10. Qh5+ {[%emt 0:00:19]} Ke7 {[%emt 0:00:09]} 11. Ng6+ {[%emt 0:02:23]} hxg6 {[%emt 0:00:16]} 12. exf6+ {[%emt 0:00:37]} Nxf6 {[%emt 0:00:06]} 13. Qxh8 {[%emt 0:00:07]} Kf7 {[%emt 0:00:06]} 14. Qh4 {[%emt 0:03:23]} e5 {[%emt 0:00:09]} 15. O-O {[%emt 0:04:43]} e4 {[%emt 0:02:47]} 16. Bxe4 {[%emt 0:09:01]} dxe4 {[%emt 0:00:11]} 17. Nxe4 {[%emt 0:00:06]} Ne2+ {[%emt 0:05:11]} 18. Kh1 {[%emt 0:00:34]} Nxc1 {[%emt 0:10:20]} 19. Ng5+ {[%emt 0:04:36]} Kg8 {[%emt 0:00:39]} 20. Raxc1 {[%emt 0:00:11]} Qd5 {[%emt 0:16:17]} 21. Rfd1 {[%emt 0:01:51]} Qb5 {[%emt 0:16:43]} 22. Rd8 {[%emt 0:03:28]} b6 {[%emt 0:03:51]} 23. a4 {[%emt 0:04:22]} Qe2 {[%emt 0:00:27]} 24. Qb4 {[%emt 0:00:32]} Nd7 1-0

[Event "WJCC U20 Open 2019"]
[Site "New Delhi"]
[Date "2019.10.23"]
[Round "9.24"]
[White "Parkhov, Yair"]
[Black "Bharath Subramaniyam H"]
[Result "1-0"]
[ECO "A72"]
[WhiteElo "2350"]
[BlackElo "2417"]
[Annotator "ChessBase"]
[PlyCount "39"]
[EventDate "2019.10.15"]
[EventType "swiss"]
[EventCountry "IND"]
[SourceTitle "playchess.com"]
[Source "ChessBase"]
[SourceQuality "1"]
[TimeControl "40/5400+30:1800+30"]

1. d4 {[%emt 0:00:00]} Nf6 {[%emt 0:00:00]} 2. c4 {[%emt 0:00:00]} e6 {[%emt 0:00:29]} 3. Nf3 {[%emt 0:00:00]} c5 {[%emt 0:00:06]} 4. d5 {[%emt 0:00:00]} exd5 {[%emt 0:00:09]} 5. cxd5 {[%emt 0:00:00]} d6 {[%emt 0:00:10]} 6. Nc3 {[%emt 0:00:04]} g6 {[%emt 0:00:09]} 7. e4 {[%emt 0:00:05]} Bg7 {[%emt 0:00:50]} 8. Be2 {[%emt 0:00:07]} O-O {[%emt 0:00:35]} 9. Be3 {[%emt 0:00:09]} a6 {[%emt 0:06:59]} 10. a4 {[%emt 0:00:16]} Re8 {[%emt 0:05:50]} 11. Nd2 {[%emt 0:00:09]} Nbd7 {[%emt 0:00:37]} 12. O-O {[%emt 0:00:34]} Rb8 {[%emt 0:01:11]} 13. Qc2 {[%emt 0:08:53]} h6 {[%emt 0:03:57]} 14. Rab1 {[%emt 0:15:09]} Ne5 {[%emt 0:04:21]} 15. Bf4 {[%emt 0:13:16]} Qc7 {[%emt 0:12:13]} 16. b4 {[%emt 0:10:48]} cxb4 {[%emt 0:04:15]} 17. Rb2 b3 18. Rxb3 {[%emt 0:00:37]} Bd7 {[%emt 0:05:35]} 19. Rb4 {[%emt 0:02:54]} Nfg4 {[%emt 0:10:52]} 20. Rc1 {[%emt 0:07:23]} 1-0

[Event "WJCC U20 Open 2019"]
[Site "New Delhi"]
[Date "2019.10.23"]
[Round "9.25"]
[White "Sammed Jaykumar, Shete"]
[Black "Garidmagnai, Byambasuren"]
[Result "0-1"]
[ECO "C07"]
[WhiteElo "2392"]
[BlackElo "2327"]
[Annotator "ChessBase"]
[PlyCount "46"]
[EventDate "2019.10.15"]
[EventType "swiss"]
[EventCountry "IND"]
[SourceTitle "playchess.com"]
[Source "ChessBase"]
[SourceQuality "1"]
[TimeControl "40/5400+30:1800+30"]

1. e4 {[%emt 0:00:00]} e6 {[%emt 0:00:00]} 2. d4 {[%emt 0:00:00]} d5 {[%emt 0:00:00]} 3. Nd2 {[%emt 0:00:00]} c5 {[%emt 0:00:00]} 4. Ngf3 {[%emt 0:00:00]} cxd4 {[%emt 0:01:13]} 5. exd5 {[%emt 0:00:00]} Qxd5 {[%emt 0:00:59]} 6. Bc4 {[%emt 0:00:02]} Qd6 {[%emt 0:01:28]} 7. O-O {[%emt 0:01:08]} Nf6 {[%emt 0:00:06]} 8. Nb3 {[%emt 0:00:34]} a6 {[%emt 0:03:01]} 9. a4 {[%emt 0:02:37]} Qc7 {[%emt 0:01:18]} 10. Qxd4 {[%emt 0:10:12]} Nc6 {[%emt 0:01:59]} 11. Qh4 {[%emt 0:06:37]} Ne7 {[%emt 0:14:07]} 12. Bd3 {[%emt 0:03:23]} Ned5 {[%emt 0:02:06]} 13. c4 {[%emt 0:05:33]} Nb4 {[%emt 0:00:38]} 14. Bf4 {[%emt 0:00:10]} Bd6 {[%emt 0:02:28]} 15. Bxd6 {[%emt 0:12:22]} Qxd6 {[%emt 0:00:04]} 16. c5 {[%emt 0:00:15]} Qxd3 {[%emt 0:01:02]} 17. Qxb4 {[%emt 0:00:06]} Nd5 {[%emt 0:00:32]} 18. Qa3 {[%emt 0:00:08]} O-O {[%emt 0:00:52]} 19. Rad1 {[%emt 0:02:21]} Qg6 {[%emt 0:02:29]} 20. Ne5 {[%emt 0:22:18]} Qg5 {[%emt 0:07:21]} 21. Rfe1 {[%emt 0:00:11]} Nf4 {[%emt 0:05:15]} 22. g3 {[%emt 0:00:08]} f6 {[%emt 0:00:12]} 23. Nf3 {[%emt 0:01:40]} Qh5 {[%emt 0:01:38]} 0-1

[Event "WJCC U20 Open 2019"]
[Site "New Delhi"]
[Date "2019.10.23"]
[Round "9.26"]
[White "Anuj Shrivatri"]
[Black "Raahul V S"]
[Result "0-1"]
[ECO "A05"]
[WhiteElo "2390"]
[BlackElo "2262"]
[Annotator "ChessBase"]
[PlyCount "28"]
[EventDate "2019.10.15"]
[EventType "swiss"]
[EventCountry "IND"]
[SourceTitle "playchess.com"]
[Source "ChessBase"]
[SourceQuality "1"]
[TimeControl "40/5400+30:1800+30"]

1. Nf3 {[%emt 0:00:00]} Nf6 {[%emt 0:00:00]} 2. c4 {[%emt 0:00:00]} e6 {[%emt 0:01:37]} 3. g3 {[%emt 0:04:21]} d5 {[%emt 0:00:28]} 4. d4 {[%emt 0:01:15]} c6 {[%emt 0:02:34]} 5. Bg2 {[%emt 0:02:41]} dxc4 {[%emt 0:03:29]} 6. O-O {[%emt 0:03:37]} b5 {[%emt 0:00:32]} 7. b3 {[%emt 0:07:42]} cxb3 {[%emt 0:00:35]} 8. axb3 {[%emt 0:00:25]} Bb7 {[%emt 0:00:15]} 9. Ne5 {[%emt 0:04:16]} Qb6 {[%emt 0:03:59]} 10. Nc3 {[%emt 0:12:38]} Bb4 {[%emt 0:05:38]} 11. Qd3 {[%emt 0:04:44]} O-O {[%emt 0:01:22]} 12. Ne4 {[%emt 0:14:52]} Nxe4 {[%emt 0:20:31]} 13. Bxe4 {[%emt 0:03:52]} f5 {[%emt 0:00:10]} 14. Bf3 {[%emt 0:08:10]} c5 {[%emt 0:10:36]} 0-1

[Event "WJCC U20 Open 2019"]
[Site "New Delhi"]
[Date "2019.10.23"]
[Round "9.27"]
[White "Tifferet, Shaked"]
[Black "Rajdeep Sarkar"]
[Result "0-1"]
[ECO "B10"]
[WhiteElo "2224"]
[BlackElo "2384"]
[Annotator "ChessBase"]
[PlyCount "96"]
[EventDate "2019.10.15"]
[EventType "swiss"]
[EventCountry "IND"]
[SourceTitle "playchess.com"]
[Source "ChessBase"]
[SourceQuality "1"]
[TimeControl "40/5400+30:1800+30"]

1. e4 {[%emt 0:00:00]} c6 {[%emt 0:00:00]} 2. Nc3 {[%emt 0:00:00]} d5 {[%emt 0:00:00]} 3. Nf3 {[%emt 0:00:00]} Nf6 {[%emt 0:00:10]} 4. e5 {[%emt 0:00:45]} Ne4 {[%emt 0:00:06]} 5. Ne2 {[%emt 0:00:33]} Qb6 {[%emt 0:00:19]} 6. d4 {[%emt 0:00:23]} e6 {[%emt 0:00:16]} 7. Ng3 {[%emt 0:02:59]} c5 {[%emt 0:00:14]} 8. Bd3 {[%emt 0:03:32]} Nxg3 {[%emt 0:00:07]} 9. hxg3 {[%emt 0:00:05]} cxd4 {[%emt 0:00:05]} 10. Ng5 {[%emt 0:14:05]} Nc6 {[%emt 0:00:07]} 11. f4 {[%emt 0:07:42]} Bd7 {[%emt 0:08:15]} 12. a3 {[%emt 0:14:49]} Be7 {[%emt 0:13:44]} 13. Qg4 {[%emt 0:05:48]} h6 {[%emt 0:06:54]} 14. Qh5 {[%emt 0:13:07]} Bxg5 {[%emt 0:36:20]} 15. Qxg5 {[%emt 0:00:30]} hxg5 {[%emt 0:00:30]} 16. Rxh8+ {[%emt 0:00:30]} Ke7 {[%emt 0:00:30]} 17. Rxa8 {[%emt 0:00:30]} gxf4 {[%emt 0:00:30]} 18. gxf4 {[%emt 0:00:30]} f6 {[%emt 0:00:30]} 19. b4 {[%emt 0:00:30]} a6 20. exf6+ {[%emt 0:10:57]} gxf6 {[%emt 0:01:00]} 21. Bd2 {[%emt 0:01:05]} e5 {[%emt 0:00:57]} 22. fxe5 {[%emt 0:00:12]} fxe5 {[%emt 0:00:01]} 23. Bg5+ {[%emt 0:01:59]} Kd6 {[%emt 0:03:10]} 24. Bh7 {[%emt 0:04:34]} d3 {[%emt 0:04:10]} 25. O-O-O {[%emt 0:01:19]} dxc2 {[%emt 0:00:33]} 26. Rh1 {[%emt 0:06:31]} Qd4 {[%emt 0:01:44]} 27. Rh6+ {[%emt 0:04:45]} Kc7 {[%emt 0:00:08]} 28. Bxc2 {[%emt 0:01:21]} Qa1+ {[%emt 0:02:43]} 29. Kd2 {[%emt 0:00:05]} Qxa3 {[%emt 0:00:10]} 30. Rh7 {[%emt 0:00:35]} Qxb4+ {[%emt 0:00:23]} 31. Kc1 {[%emt 0:00:05]} Qc3 {[%emt 0:09:48]} 32. Rg8 {[%emt 0:05:26]} Nd4 {[%emt 0:06:15]} 33. Bd8+ {[%emt 0:00:02]} Kc6 {[%emt 0:00:52]} 34. Rg6+ {[%emt 0:01:04]} Kb5 {[%emt 0:00:36]} 35. Rb6+ {[%emt 0:00:16]} Kc4 {[%emt 0:01:26]} 36. Rb2 {[%emt 0:00:09]} Nxc2 {[%emt 0:00:34]} 37. Rxc2 {[%emt 0:00:41]} Qxc2+ {[%emt 0:00:05]} 38. Kxc2 {[%emt 0:00:04]} Bf5+ {[%emt 0:00:03]} 39. Kd2 {[%emt 0:00:40]} Bxh7 {[%emt 0:00:01]} 40. Bf6 {[%emt 0:00:37]} Kd4 {[%emt 0:00:22]} 41. Be7 {[%emt 0:02:38]} Bf5 {[%emt 0:03:04]} 42. Bd6 {[%emt 0:03:38]} Ke4 {[%emt 0:00:32]} 43. Kc3 {[%emt 0:00:54]} d4+ {[%emt 0:00:07]} 44. Kc4 {[%emt 0:00:07]} Be6+ {[%emt 0:00:01]} 45. Kb4 {[%emt 0:00:33]} Kd5 {[%emt 0:00:07]} 46. Bc7 {[%emt 0:00:26]} e4 {[%emt 0:00:01]} 47. Bf4 {[%emt 0:01:07]} e3 {[%emt 0:00:05]} 48. Bh6 {[%emt 0:00:07]} Ke4 {[%emt 0:00:03]} 0-1

[Event "WJCC U20 Open 2019"]
[Site "New Delhi"]
[Date "2019.10.23"]
[Round "9.30"]
[White "Hollan, Martin"]
[Black "Nitish Belurkar"]
[Result "*"]
[ECO "A18"]
[WhiteElo "2403"]
[BlackElo "2311"]
[Annotator "ChessBase"]
[PlyCount "41"]
[EventDate "2019.10.15"]
[EventType "swiss"]
[EventCountry "IND"]
[SourceTitle "playchess.com"]
[Source "ChessBase"]
[SourceQuality "1"]
[TimeControl "40/5400+30:1800+30"]

1. c4 {[%emt 0:00:00]} Nf6 {[%emt 0:00:00]} 2. Nc3 {[%emt 0:00:00]} e6 {[%emt 0:00:00]} 3. e4 {[%emt 0:00:10]} d5 {[%emt 0:00:00]} 4. e5 {[%emt 0:01:47]} d4 {[%emt 0:00:00]} 5. exf6 {[%emt 0:00:17]} dxc3 {[%emt 0:00:00]} 6. bxc3 {[%emt 0:00:11]} Qxf6 {[%emt 0:00:04]} 7. d4 {[%emt 0:00:16]} Nc6 {[%emt 0:03:34]} 8. Nf3 {[%emt 0:00:43]} e5 {[%emt 0:00:14]} 9. Bg5 {[%emt 0:04:40]} Qg6 {[%emt 0:01:07]} 10. d5 {[%emt 0:01:15]} Nb8 {[%emt 0:02:36]} 11. Bd3 {[%emt 0:05:09]} Bf5 {[%emt 0:14:19]} 12. Qa4+ {[%emt 0:16:13]} Nd7 {[%emt 0:11:10]} 13. Qxd7+ {[%emt 0:08:48]} Bxd7 {[%emt 0:01:39]} 14. Bxg6 {[%emt 0:00:08]} hxg6 {[%emt 0:00:10]} 15. Nxe5 {[%emt 0:00:46]} Bf5 {[%emt 0:02:31]} 16. Be3 {[%emt 0:17:27]} f6 {[%emt 0:03:57]} 17. Nf3 {[%emt 0:00:10]} Bd3 {[%emt 0:01:26]} 18. Nd4 {[%emt 0:10:06]} Bxc4 {[%emt 0:09:15]} 19. Ne6 {[%emt 0:01:41]} Bd3 {[%emt 0:00:00]} 20. Nd4 Bc4 {[%emt 0:01:00]} 21. Ne6 {[%emt 0:01:00]} *

[Event "WJCC U20 Open 2019"]
[Site "New Delhi"]
[Date "2019.10.23"]
[Round "9.32"]
[White "Eugene, Floryan"]
[Black "Wagh Suyog"]
[Result "0-1"]
[ECO "C50"]
[WhiteElo "2346"]
[BlackElo "2229"]
[Annotator "ChessBase"]
[PlyCount "76"]
[EventDate "2019.10.15"]
[EventType "swiss"]
[EventCountry "IND"]
[SourceTitle "playchess.com"]
[Source "ChessBase"]
[SourceQuality "1"]
[TimeControl "40/5400+30:1800+30"]

1. e4 {[%emt 0:00:00]} e5 {[%emt 0:00:00]} 2. Nf3 {[%emt 0:00:11]} Nc6 {[%emt 0:00:00]} 3. Bc4 {[%emt 0:01:10]} Bc5 {[%emt 0:00:00]} 4. O-O {[%emt 0:00:17]} Nf6 {[%emt 0:00:00]} 5. d3 {[%emt 0:00:06]} d6 {[%emt 0:02:01]} 6. c3 {[%emt 0:00:28]} a6 {[%emt 0:02:00]} 7. a4 {[%emt 0:00:28]} Ba7 {[%emt 0:02:44]} 8. Re1 {[%emt 0:01:37]} h6 {[%emt 0:03:14]} 9. Be3 {[%emt 0:30:41]} Bxe3 {[%emt 0:04:11]} 10. Rxe3 {[%emt 0:00:12]} O-O 11. Nbd2 {[%emt 0:02:21]} Ne7 {[%emt 0:13:15]} 12. Nf1 {[%emt 0:11:16]} Ng6 {[%emt 0:01:54]} 13. Ng3 {[%emt 0:00:19]} c6 {[%emt 0:05:05]} 14. d4 {[%emt 0:03:48]} Qc7 {[%emt 0:07:52]} 15. dxe5 {[%emt 0:10:14]} dxe5 {[%emt 0:00:56]} 16. Rd3 {[%emt 0:00:40]} Nf4 {[%emt 0:09:48]} 17. Rd2 {[%emt 0:05:50]} Bg4 {[%emt 0:11:24]} 18. h3 {[%emt 0:00:32]} Bxf3 {[%emt 0:01:31]} 19. Qxf3 {[%emt 0:00:07]} g6 {[%emt 0:11:21]} 20. a5 {[%emt 0:05:23]} Rad8 {[%emt 0:01:19]} 21. Rxd8 {[%emt 0:00:07]} Rxd8 {[%emt 0:00:19]} 22. Nf1 {[%emt 0:00:28]} Kg7 {[%emt 0:02:49]} 23. Kh2 {[%emt 0:01:31]} Qe7 {[%emt 0:03:20]} 24. Ra4 {[%emt 0:07:19]} Nd7 {[%emt 0:01:44]} 25. b4 {[%emt 0:03:56]} b5 {[%emt 0:01:05]} 26. axb6 {[%emt 0:01:25]} Nxb6 {[%emt 0:00:11]} 27. Rxa6 {[%emt 0:00:13]} Nxc4 {[%emt 0:01:52]} 28. Rxc6 {[%emt 0:00:15]} Rd3 {[%emt 0:08:38]} 29. Qg4 {[%emt 0:00:10]} h5 {[%emt 0:01:10]} 30. Qc8 {[%emt 0:00:06]} Nd6 {[%emt 0:01:16]} 31. Qa6 {[%emt 0:01:35]} Qh4 {[%emt 0:03:58]} 32. Ng3 {[%emt 0:01:50]} Nxe4 {[%emt 0:00:11]} 33. Rxg6+ {[%emt 0:02:01]} fxg6 {[%emt 0:00:11]} 34. Qb7+ {[%emt 0:00:03]} Kh6 {[%emt 0:00:39]} 35. Qxe4 {[%emt 0:00:03]} Qf6 {[%emt 0:00:46]} 36. Qa8 {[%emt 0:00:42]} Qd8 {[%emt 0:00:26]} 37. Qc6 {[%emt 0:00:25]} Qd5 {[%emt 0:00:47]} 38. Nf5+ {[%emt 0:01:37]} Kg5 {[%emt 0:00:30]} 0-1